Cogmind - Beta 14 @@@ ROGUE MODE // 2024.09.05 @ 19:54:55 Player: celerysam Result: Destroyed by S-10 Pest with Light Assault Rifle Performance ------------- Evolutions (0) 0 Regions Visited (2) 400 Robots Destroyed (5) 25 Value Destroyed (131) 131 Prototype IDs (0) 0 Alien Tech Used (0) 0 Bonus (0) 0 TOTAL SCORE: 556 Bonus ------- None Cogmind --------- Core Integrity 0/250 Matter 300/300 Energy 100/100 System Corruption 0% Temperature Cool (0) Movement Core (100) Ox1 Location -10/Mines Parts ------- > --- POWER (1) -------- (None) > --- PROPULSION (2) --- (None) > --- UTILITY (2) ------ Small Storage Unit Power Shielding > --- WEAPON (2) ------- (None) > --- INVENTORY (8) ---- Ion Engine Light Ion Engine Light Treads Hover Unit Flight Unit Flight Unit High-capacity Storage Unit Splice Drone Bay Peak State ------------ > --- POWER ------------ Ion Engine > --- PROPULSION ------- Wheel Compact Wheel > --- UTILITY ---------- Small Storage Unit Power Shielding > --- WEAPON ----------- EM Pulse Gun Medium Laser > --- INVENTORY -------- Ion Engine Light Treads Light Treads Aluminum Leg Aluminum Leg Hover Unit High-capacity Storage Unit EM Pulse Gun [Rating: 7] Favorites ----------- Power Ion Engine Engine Ion Engine Propulsion Light Treads Treads Light Treads Wheel Compact Wheel Utility Small Storage Unit Storage Small Storage Unit Protection Power Shielding Weapon EM Pulse Gun Energy Gun EM Pulse Gun Build | -11 -10 -10 ------- Run | Yrd Mat Min Slots Evolved . | . . . Power . | . . . Propulsion . | . . . Utility . | . . . Weapon . | . . . Parts Attached 10 | 6 2 2 Power 1 | 1 . . Engine 1 | 1 . . Core . | . . . Reactor . | . . . Propulsion 4 | 2 . 2 Treads 2 | . . 2 Leg . | . . . Wheel 2 | 2 . . Hover . | . . . Flight . | . . . Utility 2 | 1 1 . Device . | . . . Storage 1 | 1 . . Processor . | . . . Hackware . | . . . Protection 1 | . 1 . Artifact . | . . . Weapon 3 | 2 1 . Energy Gun 3 | 2 1 . Energy Cannon . | . . . Ballistic Gun . | . . . Ballistic Cannon . | . . . Launcher . | . . . Special Weapon . | . . . Impact Weapon . | . . . Slashing Weapon . | . . . Piercing Weapon . | . . . Special Melee Weapon . | . . . Unidentified Prototypes . | . . . Parts Lost 7 | . 1 6 Power 1 | . . 1 Propulsion 3 | . . 3 Utility . | . . . Weapon 3 | . 1 2 Highest Loss Streak 3 | . 1 3 To Critical Strikes . | . . . Average Slot Usage (%) 82 | . 95 79 Engine 13 | . 14 13 Treads 21 | . . 26 Wheel 5 | . 28 . Storage 14 | . 14 14 Protection 13 | . 10 14 Energy Gun 13 | . 28 10 Peak Build Rating 7 | 6 7 7 Average Rating 6 | 4 6 6 On Entrance 4 | . 6 7 Naked Turns . | . . . Heaviest Build 15 | 14 15 13 Greatest Support 40 | 26 26 40 Greatest Overweight (x) 1 | . . 1 Average Overweight (x) . | . . . Largest Inventory Capacity 8 | 8 8 8 Average Capacity 7 | 6 8 8 Most Carried 8 | 6 8 8 Average Carried 7 | 4 7 7 Final Capacity 8 | 8 8 8 Final Carried 8 | 6 8 8 Class Distribution -------------------- 100% | Mutant Dominant Class ---------------- Mutant | -10/Materials Mutant | -10/Mines Resources | -11 -10 -10 ----------- Run | Yrd Mat Min Matter Collected 300 | 254 26 20 Remotely . | . . . Salvage Created 149 | . 99 50 Parts 13 | . 5 8 Haulers Intercepted . | . . . Recyclers Shooed . | . . . Parts Field Recycled . | . . . Retrieved Matter . | . . . Parts Self-Destructed . | . . . Prevented . | . . . Kills | -11 -10 -10 ------- Run | Yrd Mat Min Combat Hostiles Destroyed 5 | . 2 3 Guns 4 | . 1 3 AOE 1 | . 1 . Classes Destroyed 2 | . 1 1 Swarmer 3 | . . 3 Grunt 2 | . 2 . Best Kill Streak 3 | . 2 3 Combat Bots Only 3 | . 2 3 Max Kills in Single Turn 1 | . 1 1 Gunslinging . | . . . Exploded 1 | . 1 . Melee . | . . . Uniques/NPCs Destroyed . | . . . Combat | -11 -10 -10 -------- Run | Yrd Mat Min Hostile Shots Fired 94 | . 14 80 Missed 19 | . 1 18 Damage Taken 932 | . 171 761 Core 254 | . 14 240 Absorbed by Shields . | . . . Redirected to Shielding 24 | . . 24 Core Remaining (%) 100 | 100 . . Volleys Fired 14 | . 5 9 Largest 2 | . 2 2 Hottest 90 | . 90 90 Shots Fired 23 | . 10 13 Gun 23 | . 10 13 Cannon . | . . . Launcher . | . . . Special . | . . . Kinetic . | . . . Thermal 9 | . 5 4 Explosive . | . . . Electromagnetic 14 | . 5 9 Robot Hit Streak 12 | . 10 12 Robot Miss Streak 2 | . . 2 Penetration Max . | . . . Secondary Targets 2 | . 1 1 Max Gunslinging Chain 1 | . 1 1 Shots Hit Robots 17 | . 10 7 Core Hits 8 | . 4 4 Critical Kills . | . . . Critical Parts Destroyed . | . . . Critical Strikes 1 | . 1 . Burn 1 | . 1 . Melee Attacks . | . . . Impact . | . . . Slashing . | . . . Piercing . | . . . Sneak Attacks . | . . . Combat Hostiles . | . . . Follow-up Attacks . | . . . Damage Inflicted 264 | . 159 105 Guns 199 | . 118 81 Cannons . | . . . Explosions 41 | . 41 . Melee . | . . . Ramming 24 | . . 24 Kinetic . | . . . Thermal 117 | . 92 25 Explosive . | . . . Electromagnetic 123 | . 67 56 Impact . | . . . Slashing . | . . . Piercing . | . . . Highest Corruption . | . . . Average Corruption . | . . . Corruption Purged . | . . . Corruption Blocked . | . . . Overload Shots . | . . . Overflow Damage . | . . . Projectiles . | . . . Explosions . | . . . Melee . | . . . Knockbacks . | . . . Impact . | . . . Kinetic . | . . . Secondary . | . . . Self-Inflicted Damage . | . . . Shots . | . . . Rammed 11 | . . 11 Targets Rammed 11 | . . 11 Kicked . | . . . Crushed . | . . . Highest Temperature 177 | . 177 120 Average Temperature 86 | . 98 72 Received Heat Transfer 471 | . 114 357 Siege Activations . | . . . Robots Corrupted . | . . . Combat Hostiles . | . . . Parts Fried . | . . . Impact Corruptions . | . . . Robots Melted . | . . . Combat Hostiles . | . . . Parts Melted . | . . . Heat Transferred 296 | . 222 74 Parts Sabotaged . | . . . Parts Stolen . | . . . Parts Stripped . | . . . Power Chain Reactions 1 | . 1 . Alert | -11 -10 -10 ------- Run | Yrd Mat Min Peak Influence 106 | . 106 90 Initial 40 | . . 40 Average 64 | . 47 75 Maximum Alert Level . | . . . Low Security (%) 100 | 100 100 100 Level 1 . | . . . Level 2 . | . . . Level 3 . | . . . Level 4 . | . . . Level 5 . | . . . High Security . | . . . Max Security . | . . . Squads Dispatched 1 | . 1 . Investigation . | . . . Extermination . | . . . Reinforcement 1 | . 1 . Assault . | . . . Garrison . | . . . Intercept . | . . . Searches Triggered . | . . . Construction Impeded . | . . . Haulers Reinforced . | . . . Active Scanning Responses . | . . . Cargo Convoy Interrupts . | . . . Stealth | -11 -10 -10 --------- Run | Yrd Mat Min Distress Signals . | . . . Communications Jammed . | . . . Distress Signals . | . . . Times Spotted 16 | . 6 10 Peak Tracking Total 5 | . 4 5 Tactical Retreats 3 | . . 3 Traps | -11 -10 -10 ------- Run | Yrd Mat Min Traps Triggered . | . . . Indirectly . | . . . Trap Hack Attempts . | . . . Triggered . | . . . Disarmed . | . . . Reprogrammed . | . . . Reused . | . . . Traps Extracted . | . . . Installed . | . . . Triggered . | . . . Machines | -11 -10 -10 ---------- Run | Yrd Mat Min Machines Disabled 2 | . 2 . Max in Single Turn 2 | . 2 . Machines Repaired . | . . . Machines Dismantled . | . . . Machines Sabotaged . | . . . Overloaded Fab Kills . | . . . Hacking | -11 -10 -10 --------- Run | Yrd Mat Min Machines Accessed 2 | . . 2 Terminals 1 | . . 1 Fabricators . | . . . Repair Stations . | . . . Recycling Units . | . . . Scanalyzers . | . . . Garrison Access . | . . . Total Hacks 3 | . . 3 Successful 2 | . . 2 Failed 1 | . . 1 Catastrophic . | . . . Database Lockouts . | . . . Manual . | . . . Terminals 2 | . . 2 Fabricators . | . . . Repair Stations . | . . . Recycling Units . | . . . Scanalyzers . | . . . Garrison Access . | . . . Terminal Hacks 2 | . . 2 Open Door 1 | . . 1 Investigation Status 1 | . . 1 Fabricator Hacks . | . . . Repair Station Hacks . | . . . Recycling Unit Hacks . | . . . Scanalyzer . | . . . Garrison Access Hacks . | . . . Unauthorized Hacks . | . . . Terminals . | . . . Fabricators . | . . . Repair Stations . | . . . Recycling Units . | . . . Scanalyzers . | . . . Garrison Access . | . . . Data Cores Recovered . | . . . Used . | . . . Hacking Detections 1 | . . 1 Full Trace Events . | . . . Feedback Events . | . . . Feedback Blocked . | . . . Robot Schematics Acquired . | . . . Robots Built . | . . . Authchips . | . . . Time . | . . . Total Robot Build Rating . | . . . Part Schematics Acquired . | . . . Parts Built . | . . . Authchips . | . . . Time . | . . . Total Part Build Rating . | . . . Parts Repaired . | . . . Time . | . . . Parts Recycled . | . . . Recycled Matter . | . . . Retrieved Matter . | . . . Retrieved Components . | . . . Parts Scanalyzed . | . . . Part Schematics Acquired . | . . . Parts Damaged . | . . . Bothacking | -11 -10 -10 ------------ Run | Yrd Mat Min Used RIF Installer . | . . . Robots Hacked . | . . . Non-combat . | . . . Combat . | . . . Robot Hacks Applied . | . . . Relay Couplers Released . | . . . Fabnet Peak Effective % . | . . . Robots Rewired . | . . . Allies Hacked . | . . . Hacks Repelled . | . . . Allies | -11 -10 -10 -------- Run | Yrd Mat Min Total Allies . | . . . Largest Group . | . . . Highest-Rated Group . | . . . Highest-Rated Ally . | . . . Total Orders . | . . . Ally Attacks . | . . . Total Damage . | . . . Kills . | . . . Allies Corrupted . | . . . Allies Melted . | . . . Intel | -11 -10 -10 ------- Run | Yrd Mat Min Robot Analysis Total . | . . . Derelict Logs Recovered . | . . . Drone Launches . | . . . Drone Recoveries . | . . . Exploration | -11 -10 -10 ------------- Run | Yrd Mat Min Turns Passed 693 | 62 109 522 Spaces Moved 421 | 52 99 270 Core 5 | 4 . 1 Treads 268 | . . 268 Legs . | . . . Wheels 148 | 48 99 1 Hover . | . . . Flight . | . . . Fastest Speed 50 | 50 90 100 Average Speed 134 | 86 90 159 Slowest Speed 160 | 90 90 160 Overloaded Moves . | . . . Propulsion Burnouts . | . . . Robots Hopped . | . . . Cave-ins Triggered . | . . . Exploration Rate (%) 23 | 4 26 39 Regions Visited 2 Branch Regions 1 Pre-discovered Areas 1 | . . 1 Known Exits Taken . | . . . Unknown Exits Taken 2 | 1 1 . Scrap Searched 1 | . . 1 Spaces Dug . | . . . Terrain Destroyed 5 | . 5 . Melee . | . . . Projectile . | . . . AOE 5 | . 5 . Terrain Rammed . | . . . Walls Destroyed . | . . . Machines Disabled . | . . . Actions | -11 -10 -10 --------- Run | Yrd Mat Min Total 517 | 67 108 342 Wait 43 | . . 43 Move 419 | 51 98 270 Hop . | . . . Pick Up 17 | 10 3 4 Fast Attach 3 | 2 1 . Attach 6 | 4 1 1 Detach . | . . . Swap 1 | . . 1 Drop 3 | . . 3 Fire 14 | . 5 9 Melee . | . . . Ram . | . . . Kick . | . . . Crush 11 | . . 11 Escape Stasis . | . . . Rewire . | . . . Trap . | . . . Miscellaneous . | . . . Route ------- -11/Scrapyard -10/Materials -10/Mines (discovered 1 exit: [*Mat]) History --------- Turn | Location | Event 2 | -11/Scrapyard | Met Revision 17 20 | -11/Scrapyard | Discovered new exit (range 15) 63 | -11/Scrapyard | Entered Materials 143 | -10/Materials | Discovered new exit (range 10) 172 | -10/Materials | Entered Mines 233 | -10/Mines | Met a Derelict bent on vengeance 311 | -10/Mines | Build established: Mutant 343 | -10/Mines | Discovered new exit (range 5) 350 | -10/Mines | Learned location of Storage (-8) 361 | -10/Mines | Found the Drone Emporium 369 | -10/Mines | Found Prototype Device 566 | -10/Mines | Assembled infested the area 638 | -10/Mines | Core integrity fell below 50% 666 | -10/Mines | Core integrity fell below 20% 693 | -10/Mines | Met 8R-AWN 693 | -10/Mines | A weapon hastily lodged in a ceiling crevice suddenly fell to the ground 694 | -10/Mines | Destroyed by S-10 Pest with Light Assault Rifle Last Messages --------------- 00557_ Slammed into K-01 Serf. 00566_ ALERT: Infestation in the mines, dispatching Demolisher response squad. 00572_ G-47 Trooper misfires. 00600_ C-30 ARC bursts open, deploying its payload. 00600_ D-53 Grenadier unfolds itself. 00625_ Critical hit (Burn: +37). 00653_ The unstable cave ceiling collapses. 00658_ Slammed into G-47 Trooper. 00660_ Lgt. Treads destroyed. 00662_ Slammed into G-34 Mercenary. 00670_ Slammed into R-06 Scavenger. 00678_ Ion Engine destroyed. 00692_ Lgt. Treads destroyed. 8R-AWN: Hm, I'm not getting any readings that show these Assembled are different than what we have already... But you... you look interesting. Maybe they'll want to see you. Come along little bot, it's safer with us than out here, anyway. 00693_ A Hvy. Battle Rifle has been hastily shoved under some rubble with a note attached: "To battle!" Map ----- +----------------------------------------------------+ | | | | | | | ?????????????????????????????????????????????????? | | ?????????????????????????????????????????????????? | | ?????????????????????????????????????????????????? | | ?????????????????????????????????????????????????? | | ?????????????????????????????????????????????????? | | ?????????????????????????????????????????????????? | | ?????????????????????????????????????????????????? | | ?????????????????????????????????????????????????? | | ?????????????????????????????????????????????????? | | ?????????????????????????????????????????????????? | | ?????????????????????????????????????????????????? | | ?????????????????????????????????????????????????? | | ?????????????????????????????????????????????????? | | ?????????????????????????????????????????????????? | | ?????????????????????????????????????????????????? | | ?????????????????????????????????????????????????? | | ?????????????????????????????????????????????????? | | ?????????????????????????????????????????????????? | | ?????????????????????????????????????????????????? | | ?????????????????????????????????????????????????? | | ???????????????????########??????????????????????? | | ???????????????????# s u ##?????????????????????? | | ???????????????????# ### @ #?????????????????????? | | ???????????????????# #?##[ #????????????????????? | | ???????????????????# #??# #???????????????????? | | ???????????????????# #??# g ??????????????????? | | ????????????######## #??# ###?????????????????? | | ?????????# #??## ##???????????????????? | | ?????###############%#????###????????????????????? | | ?????# #?????#%#???????????????????????????? | | ?????# #?????#%#???????????????????????????? | | ?????# !! #?????#%#???????????????????????????? | | ?????# ! #?????#%#???????????????????????????? | | ?????# ! #???###%#???????????????????????????? | | ##???# !!! #???# #???????????????????????????? | | #???# #???#%###???????????????????????????? | | #???# #???# #???####??????????????????????? | | #???# ##### ###### ##?????????????????????? | | #???# ## % ##????????????????????? | | ######## #####%######## #????????????????????? | | #???#%#??????# #????????????????????? | | ######### #??## ####???# #????????????????????? | | ???###### #### #???# #???????????????????? | | ???# %! ##??# ##??????????????????? | | ???# #### #### """ T#??## ##?????????????????? | | ???# #??# #??# """ ##???## #?????????????????? | | ???# #??# #??# """ #????## #?????????????????? | +----------------------------------------------------+ Best States ------------- Heat Dissipation 25 Energy Generation 10 Energy Capacity 250 Matter Stores 300 Matter Capacity 300 Sight Range 16 Terrain Scan Density 10 Power Shielding 33 Evasion (%) 42 Recoil Reduction 2 Item Schematics ----------------- None Robot Schematics ------------------ None Fabricated ------------ Nothing Alien Tech Used ----------------- None Achievements -------------- None Challenges ------------ None Game ------ Seed NovaNetworkSource Manual? 0 Play Time 00:09:27 Cumulative 154.9 hours Start 2024.09.05 @ 19:44:57 End 2024.09.05 @ 19:54:55 Sessions 1 Manual Loads 0 Difficulty Rogue Special Mode None Game No. 216 Rogue 216 Adventurer 0 Explorer 0 Win Type - Total 0 Types 0/0/0/0/0/0/0/0/0 Lore% 32 Gallery% 60 Achievement% 40 Wizard Run 0 Options --------- Layout 0 ASCII 0 Keyboard 0 Movement Mouse Keybinds 0 Fullscreen 1 Font 24/Smallcaps Map View 76x50 Zoom Use 0% Tactical HUD 1 Map Filters NONE Filters NONE Steam 1 RUN: 95f3265b-8d77-4246-bcd4-eefad0740813